fUSD/lending_fUSD_20251103
["ID","MTS","AMOUNT","RATE_DAILY","PERIOD"]
[392939583,1762158632203,-666.0,0.00014979,2]
[392939585,1762158632212,-301714.32476295,0.0001498,2]
[392939589,1762158632241,-260.16490499,0.0001498,2]
[392939665,1762158639789,-988.73942598,0.0001498,2]
[392939666,1762158640002,-3911.73788224,0.0001498,2]
[392939667,1762158640014,-536.5,0.0001498,2]
[392939668,1762158640025,-528.32200003,0.0001498,2]
[392939669,1762158640057,-689528.31730103,0.0001498,2]
[392939692,1762158642878,-1431.75,0.0001498,2]
[392939693,1762158643090,-1840.26231447,0.0001498,2]
[392939694,1762158643147,-538.42286,0.0001498,2]
[392939695,1762158643159,-306214.69412655,0.0001498,2]
[392939710,1762158645741,-161706.51658494,0.0001498,2]
[392939740,1762158727466,500.0,0.00014081,2]
[392939742,1762158810287,150.0,0.00014052,2]
[392939756,1762158930166,1638.17,0.00014,2]
[392939759,1762158995156,2751.0,0.00013979,2]
[392939764,1762159075219,600.0,0.00013699,2]
[392939765,1762159075662,33.75,0.00013699,2]
[392939766,1762159075686,566.25,0.00013699,2]
[392939767,1762159075732,600.0,0.00013699,2]
[392939768,1762159076007,600.0,0.00013699,2]
[392939769,1762159076600,270.65493324,0.00013699,2]
[392939770,1762159076624,329.34506676,0.00013699,2]
[392939771,1762159076895,600.0,0.00013699,2]
[392939772,1762159077185,600.0,0.00013699,2]
[392939773,1762159077639,600.0,0.00013699,2]
[392939774,1762159093304,-274.1253335,0.00014475,2]
[392939775,1762159097256,-225.79715932,0.00014475,2]
[392939776,1762159099920,-157.47395599,0.00014475,2]
[392939777,1762159101369,-317.21109613,0.00014475,2]
[392939778,1762159103425,-386.0091798,0.00014475,2]
[392939780,1762159106235,-208.06507426,0.00014475,2]
[392939781,1762159109787,-160.13207637,0.00014475,2]
[392939782,1762159123948,600.0,0.00013699,2]
[392939783,1762159124209,600.0,0.00013699,2]
[392939784,1762159124477,600.0,0.00013699,2]
[392939785,1762159124773,600.0,0.00013699,2]
[392939786,1762159125094,600.0,0.00013699,2]
[392939787,1762159125375,600.0,0.00013699,2]
[392939788,1762159125660,600.0,0.00013699,2]
[392939789,1762159126246,600.0,0.00013699,2]
[392939801,1762159203778,5000.0,0.00013913,2]
[392939803,1762159206299,150.0,0.0001398,2]
[392939804,1762159206540,150.0,0.0001398,120]
[392939805,1762159215412,-114.18612463,0.00014475,2]
[392939806,1762159215441,-68.85929908,0.00014578,2]
[392939819,1762159305427,-187.46062531,0.00014524,2]
[392939820,1762159308100,-210.85695988,0.00014524,2]
[392939821,1762159310934,-300.0,0.00014524,2]
[392939822,1762159314089,-384.98444437,0.00014524,2]
[392939824,1762159317737,-347.2302635,0.00014524,2]
[392939827,1762159324191,-337.32939853,0.00014524,2]
[392939828,1762159329682,-252.14959103,0.00014524,2]
[392939829,1762159333097,-174.66744348,0.00014524,2]
[392939830,1762159335667,-645.01425327,0.00014524,2]
[392939831,1762159337165,-173.18296549,0.00014524,2]
[392939834,1762159338934,200.0,0.0001394,2]
[392939835,1762159339340,-239.84119403,0.00014524,2]
[392939836,1762159342110,-700.0,0.00014524,2]
[392939837,1762159345547,-219.60658554,0.00014524,2]
[392939839,1762159348739,-555.68611935,0.00014524,2]
[392939840,1762159350595,-443.34952151,0.00014524,2]
[392939841,1762159353848,-265.93259041,0.00014524,2]
[392939843,1762159356508,-238.66790005,0.00014524,2]
[392939844,1762159359207,-200.0,0.00014524,2]
[392939864,1762159482493,600.0,0.00013699,2]
[392939865,1762159482809,600.0,0.00013699,2]
[392939866,1762159483067,600.0,0.00013699,2]
[392939867,1762159483394,600.0,0.00013699,2]
[392939868,1762159483935,600.0,0.00013699,2]
[392939869,1762159484185,600.0,0.00013699,2]
[392939870,1762159484463,600.0,0.00013699,2]
[392939871,1762159484729,600.0,0.00013699,2]
[392939873,1762159509117,150.0,0.00013463,2]
[392939874,1762159527340,600.0,0.00013699,2]
[392939875,1762159527615,600.0,0.00013699,2]
[392939876,1762159527885,600.0,0.00013699,2]
[392939877,1762159528340,600.0,0.00013699,2]
[392939878,1762159528614,600.0,0.00013699,2]
[392939879,1762159528874,600.0,0.00013699,2]
[392939880,1762159529139,600.0,0.00013699,2]
[392939881,1762159529391,600.0,0.00013699,2]
[392939882,1762159529511,50.01,0.00013463,2]
[392939883,1762159529534,99.99,0.00013463,2]
[392939884,1762159633325,186.34,0.00011138,2]
[392939896,1762159680374,-12.04014425,0.00014524,2]
[392939897,1762159680395,-250.0,0.00014551,2]
[392939898,1762159680417,-81.49687324,0.00014551,2]
[392939899,1762159683881,-300.0,0.00014537,2]
[392939900,1762159683905,-99.08,0.00014551,2]
[392939901,1762159685319,265.0,0.0001442,2]
[392939903,1762159787958,150.0,0.00013886,2]
[392939906,1762159832088,-168.0,0.00014525,2]
[392939907,1762159832098,-19.42312676,0.00014551,2]
[392939908,1762159832107,-108.64965024,0.00014703,2]
[392939909,1762159832138,-140.06566797,0.00014703,2]
[392939912,1762159832149,-168.0,0.00014709,2]
[392939913,1762159832158,-937.9516424,0.00014712,2]
[392940048,1762159837856,-536.1356,0.00014712,2]
[392940049,1762159837965,-769.53668,0.00014712,2]
[392940098,1762159839848,-248.3760776,0.00014712,2]
[392940099,1762159839858,-500.0,0.0001474,2]
[392940100,1762159839868,-168.0,0.00014751,2]
[392940101,1762159839877,-160.9557896,0.0001478,2]
[392940102,1762159840237,-1.6e-07,0.0001478,2]
[392940103,1762159841369,-81.36848198,0.0001478,2]
[392940104,1762159841378,-163.47427886,0.0001478,2]
[392940105,1762159841387,-242.32427168,0.00014793,2]
[392940106,1762159841396,-242.32427168,0.00014807,2]
[392940107,1762159841405,-1200.0,0.00014812,2]
[392940108,1762159841415,-2492.0,0.00014813,2]
[392940109,1762159841424,-300.0,0.00014819,2]
[392940110,1762159841433,-242.32427168,0.0001482,2]
[392940111,1762159841443,-1560.01892,0.0001483,2]
[392940112,1762159841453,-242.32427168,0.00014833,2]
[392940113,1762159841462,-180.47436555,0.00014838,2]
[392940114,1762159841471,-242.32427168,0.00014847,2]
[392940115,1762159841481,-242.32427168,0.0001486,2]
[392940116,1762159841490,-150.0,0.0001487,2]
[392940117,1762159841499,-322.6107,0.00014871,2]
[392940118,1762159841508,-307.81342059,0.00014871,2]
[392940119,1762159841517,-623.58710448,0.00014871,2]
[392940120,1762159841526,-4000.0,0.00014871,2]
[392940121,1762159841535,-4000.0,0.00014871,2]
[392940122,1762159841545,-4000.0,0.00014871,2]
[392940123,1762159841554,-4000.0,0.00014871,2]
[392940124,1762159841563,-620.0,0.00014871,2]
[392940125,1762159841572,-4000.0,0.00014871,2]
[392940126,1762159841581,-4000.0,0.00014871,2]
[392940127,1762159841590,-4000.0,0.00014871,2]
[392940128,1762159841599,-4000.0,0.00014871,2]
[392940129,1762159841609,-4000.0,0.00014871,2]
[392940130,1762159841618,-4000.0,0.00014871,2]
[392940131,1762159841627,-4000.0,0.00014871,2]
[392940132,1762159841636,-4000.0,0.00014871,2]
[392940134,1762159841646,-4000.0,0.00014871,2]
[392940136,1762159841655,-151.0,0.00014871,2]
[392940138,1762159841664,-4000.0,0.00014871,2]
[392940139,1762159841673,-159.23727129,0.00014871,2]
[392940140,1762159841682,-514.84070869,0.00014871,2]
[392940141,1762159841691,-151.0,0.00014871,2]
[392940142,1762159841701,-204.54206841,0.00014871,2]
[392940143,1762159841710,-500.0,0.00014871,2]
[392940144,1762159841718,-151.0,0.00014871,2]
[392940145,1762159841727,-1000.0,0.00014871,2]
[392940146,1762159841736,-215.74106436,0.00014871,2]
[392940147,1762159841745,-151.0,0.00014871,2]
[392940148,1762159841754,-1000.0,0.00014871,2]
[392940149,1762159841763,-151.0,0.00014871,2]
[392940150,1762159841772,-1000.0,0.00014871,2]
[392940151,1762159841781,-1000.0,0.00014871,2]
[392940152,1762159841790,-151.0,0.00014871,2]
[392940153,1762159841799,-1000.0,0.00014871,2]
[392940154,1762159841809,-151.0,0.00014871,2]
[392940155,1762159841818,-1000.0,0.00014871,2]
[392940156,1762159841827,-151.0,0.00014871,2]
[392940157,1762159841838,-1000.0,0.00014871,2]
[392940158,1762159841848,-151.0,0.00014871,2]
[392940159,1762159841857,-1000.0,0.00014871,2]
[392940160,1762159841867,-152.0,0.00014871,2]
[392940161,1762159841876,-204.00867967,0.00014871,2]
[392940162,1762159841886,-1000.0,0.00014871,2]
[392940163,1762159841895,-1000.0,0.00014871,2]
[392940164,1762159841904,-1000.0,0.00014871,2]
[392940165,1762159841914,-1000.0,0.00014871,2]
[392940166,1762159841923,-1000.0,0.00014871,2]
[392940167,1762159841932,-1000.0,0.00014871,2]
[392940168,1762159841941,-500.0,0.00014873,2]
[392940169,1762159841950,-242.32427168,0.00014873,2]
[392940170,1762159841960,-500.0,0.00014875,2]
[392940171,1762159841970,-500.0,0.00014875,2]
[392940172,1762159841979,-500.0,0.00014875,2]
[392940173,1762159841988,-500.0,0.00014875,2]
[392940174,1762159841998,-500.0,0.00014875,2]
[392940175,1762159842008,-500.0,0.00014875,2]
[392940176,1762159842017,-500.0,0.00014875,2]
[392940177,1762159842026,-500.0,0.00014875,2]
[392940178,1762159842035,-180.88787476,0.00014875,2]
[392940179,1762159842043,-500.0,0.00014875,2]
[392940180,1762159842052,-500.0,0.00014875,2]
[392940181,1762159842061,-500.0,0.00014875,2]
[392940182,1762159842071,-500.0,0.00014875,2]
[392940183,1762159842080,-500.0,0.00014875,2]
[392940184,1762159842089,-500.0,0.00014875,2]
[392940185,1762159842098,-500.0,0.00014875,2]
[392940186,1762159842107,-500.0,0.00014875,2]
[392940187,1762159842116,-500.0,0.00014875,2]
[392940188,1762159842125,-500.0,0.00014875,2]
[392940189,1762159842134,-500.0,0.00014875,2]
[392940190,1762159842142,-500.0,0.00014879,2]
[392940191,1762159842152,-500.0,0.00014879,2]
[392940192,1762159842160,-500.0,0.00014879,2]
[392940193,1762159842169,-335.1970521,0.00014879,2]
[392940194,1762159842178,-151.95837709,0.00014879,2]
[392940195,1762159842188,-163.04494074,0.00014879,2]
[392940196,1762159842196,-420000.0,0.0001488,2]
[392940197,1762159842207,-200.0,0.0001488,2]
[392940198,1762159842218,-164.27891655,0.0001488,2]
[392940199,1762159842227,-242.32427168,0.00014887,2]
[392940200,1762159842237,-5800.0,0.00014891,2]
[392940201,1762159842246,-5800.0,0.000149,2]
[392940202,1762159842255,-678.91328842,0.000149,2]
[392940203,1762159842264,-485.0038335,0.000149,2]
[392940204,1762159842273,-242.32427168,0.000149,2]
[392940205,1762159842282,-150.0,0.000149,2]
[392940206,1762159842291,-500.0,0.000149,2]
[392940207,1762159842300,-500.0,0.000149,2]
[392940208,1762159842309,-150.0,0.00014906,2]
[392940209,1762159842318,-432.36280577,0.00014934,2]
[392940210,1762159842327,-65984.2872199,0.00014935,2]
[392940211,1762159842336,-150.0,0.00014959,2]
[392940212,1762159842345,-1560.01893,0.0001496,2]
[392940213,1762159842355,-208.0664155,0.0001497,2]
[392940214,1762159842363,-500.0,0.00014973,2]
[392940215,1762159842373,-502.61889303,0.00014973,2]
[392940216,1762159842382,-500.0,0.00014973,2]
[392940217,1762159842391,-500.0,0.00014973,2]
[392940218,1762159842400,-500.0,0.00014973,2]
[392940219,1762159842409,-860.3103509,0.00014978,2]
[392940220,1762159842419,-23473.3336865,0.00014979,2]
[392940221,1762159842428,-22124.1087385,0.00014979,2]
[392940222,1762159842437,-500.0,0.00014979,2]
[392940223,1762159842447,-266.17310046,0.00014979,2]
[392940224,1762159842456,-156.2,0.00014979,2]
[392940225,1762159842466,-2833.0,0.0001498,2]
[392940226,1762159842475,-1950437.2465662,0.0001498,2]
[392940227,1762159842484,-1560.01892,0.0001498,2]
[392940228,1762159842493,-1239.0,0.0001498,2]
[392940229,1762159842503,-1239.0,0.0001498,2]
[392940230,1762159842512,-1239.0,0.0001498,2]
[392940231,1762159842521,-1239.0,0.0001498,2]
[392940232,1762159842530,-1239.0,0.0001498,2]
[392940233,1762159842539,-500.0,0.0001499,2]
[392940234,1762159842548,-500.0,0.0001499,2]
[392940235,1762159842558,-500.0,0.0001499,2]
[392940236,1762159842567,-745.72,0.0001499,2]
[392940237,1762159842576,-500.0,0.0001499,2]
[392940238,1762159842584,-500.0,0.0001499,2]
[392940239,1762159842593,-500.0,0.0001499,2]
[392940240,1762159842603,-500.0,0.0001499,2]
[392940241,1762159842612,-500.0,0.0001499,2]
[392940242,1762159842621,-629.03,0.00014991,2]
[392940243,1762159842631,-191.19254604,0.00014991,2]
[392940244,1762159842640,-610.0,0.00014991,2]
[392940245,1762159842650,-840.0,0.00014991,2]
[392940246,1762159842659,-155.0,0.00014999,2]
[392940247,1762159842668,-666.0,0.00014999,2]
[392940248,1762159842677,-634510.55117825,0.00015,2]
[392940251,1762159842911,-1071.0,0.00015,2]
[392940254,1762159842930,-30612.76748915,0.00015,2]
[392940256,1762159842940,-436.17560456,0.00015,2]
[392940279,1762159843161,-35808.45093662,0.00015,2]
[392940291,1762159843216,-561613.67702603,0.00015,2]
[392940293,1762159843225,-4194364.57693554,0.00015,2]
[392940295,1762159843236,-594.27179784,0.00015,2]
[392940347,1762159843738,-122457.13701196,0.00015,2]
[392940393,1762159846102,-867.46330642,0.00014979,2]
[392940394,1762159846114,-828.90841732,0.00014979,2]
[392940395,1762159846124,-28.13158268,0.00015,2]
[392940396,1762159846135,-3759.80276718,0.00015,2]
[392940569,1762159848110,-3129.25025973,0.00015,2]
[392943021,1762160186446,600.0,0.00013699,2]
[392943022,1762160186728,600.0,0.00013699,2]
[392943025,1762160186996,600.0,0.00013699,2]
[392943026,1762160187261,353.70310971,0.00013699,2]
[392943027,1762160202728,631.74,0.00013699,2]
[392943029,1762160209538,600.0,0.00013699,2]
[392943030,1762160209786,600.0,0.00013699,2]
[392943031,1762160210073,600.0,0.00013699,2]
[392943032,1762160210334,600.0,0.00013699,2]
[392943033,1762160210594,600.0,0.00013699,2]
[392943034,1762160210813,166.66,0.00013699,2]
[392943035,1762160210886,600.0,0.00013699,2]
[392943036,1762160211179,600.0,0.00013699,2]
[392943037,1762160211218,166.66,0.0001391,2]
[392943038,1762160211456,600.0,0.00013699,2]
[392943039,1762160211491,166.66,0.00014122,2]
[392943040,1762160211670,166.66,0.00014333,2]
[392943041,1762160225810,225.03,0.00014023,2]
[392943044,1762160239608,250.0,0.00014008,2]
[392943046,1762160260011,610.0,0.00014008,2]
[392943055,1762160372429,662.89689029,0.00014,2]
[392943056,1762160372451,337.10310971,0.00014,2]
[392943066,1762160462548,200.0,0.00013979,2]
[392943085,1762160670999,-166.66,0.00014545,2]
[392943086,1762160671020,-134.99413851,0.00014545,2]
[392943087,1762160674405,-15.00586149,0.00014545,2]
[392943088,1762160674428,-147.58587381,0.00014545,2]
[392943089,1762160676784,-2.41412619,0.00014545,2]
[392943090,1762160676804,-150.0,0.00014545,2]
[392943091,1762160676825,-124.80118803,0.00014545,2]
[392943092,1762160681517,-25.19881197,0.00014545,2]
[392943093,1762160681544,-137.39292333,0.00014545,2]
[392943095,1762160708777,150.0,0.00013488,2]
[392943096,1762160708849,150.0,0.00014237,2]
[392943097,1762160708997,150.0,0.00013488,2]
[392943098,1762160709069,150.0,0.00013488,2]
[392943100,1762160715489,255.56280565,0.00013488,2]
[392943101,1762160715583,150.0,0.00013488,2]
[392943102,1762160715800,150.0,0.00013488,2]
[392943103,1762160722022,283.17879875,0.00013488,2]
[392943104,1762160722056,155.62045552,0.00013488,2]
[392943105,1762160722136,153.70308771,0.00013488,2]
[392943107,1762160728152,150.00000001,0.00013488,2]
[392943109,1762160729526,150.0,0.00013488,2]
[392943110,1762160729838,150.0,0.00013488,2]
[392943113,1762160746106,-12.60707667,0.00014545,2]
[392943114,1762160746129,-150.0,0.00014545,2]
[392943115,1762160746154,-150.0,0.00014545,2]
[392943116,1762160746177,-150.0,0.00014545,2]
[392943117,1762160746200,-150.0,0.00014545,2]
[392943118,1762160746221,-150.0,0.00014545,2]
[392943119,1762160746243,-150.0,0.00014545,2]
[392943120,1762160746264,-150.0,0.00014545,2]
[392943121,1762160746285,-150.0,0.00014545,2]
[392943122,1762160746306,-150.0,0.00014545,2]
[392943123,1762160746327,-150.0,0.00014545,2]
[392943124,1762160746348,-6.59656831,0.00014545,2]
[392943125,1762160749781,-143.40343169,0.00014545,2]
[392943126,1762160749802,-51.59656831,0.00014545,2]
[392943134,1762160835891,-216.94891303,0.00014544,2]
[392943137,1762160880409,600.0,0.00013699,2]
[392943138,1762160880884,600.0,0.00013699,2]
[392943139,1762160881165,600.0,0.00013699,2]
[392943140,1762160881425,600.0,0.00013699,2]
[392943141,1762160881701,600.0,0.00013699,2]
[392943142,1762160881984,600.0,0.00013699,2]
[392943143,1762160882262,600.0,0.00013699,2]
[392943144,1762160882508,600.0,0.00013699,2]
[392943161,1762161031990,-300.0,0.00014544,2]
[392943162,1762161032001,-22.83,0.00014544,2]
[392943163,1762161032013,-1177.17,0.00014544,2]
[392943164,1762161032022,-352.39811301,0.00014545,2]
[392943165,1762161032031,-250.0,0.00014545,2]
[392943166,1762161032041,-98.40343169,0.00014545,2]
[392943167,1762161032050,-150.0,0.00014545,2]
[392943168,1762161032059,-150.0,0.00014545,2]
[392943169,1762161032069,-150.0,0.00014545,2]
[392943170,1762161032078,-150.0,0.00014545,2]
[392943171,1762161032088,-150.0,0.00014545,2]
[392943172,1762161032097,-150.0,0.00014545,2]
[392943173,1762161032106,-150.0,0.00014545,2]
[392943174,1762161032116,-150.0,0.00014545,2]
[392943175,1762161032126,-150.91611724,0.000147,2]
[392943176,1762161032135,-500.0,0.0001474,2]
[392943177,1762161032144,-166.66,0.00014756,2]
[392943178,1762161032154,-1700.82966682,0.00014771,2]
[392943179,1762161032166,-2299.17033318,0.00014771,2]
[392943180,1762161032176,-151.0,0.00014771,2]
[392943181,1762161032192,-322.6107,0.00014771,2]
[392943182,1762161032202,-514.84070869,0.00014771,2]
[392943183,1762161032211,-248.71531821,0.00014771,2]
[392943184,1762161032221,-150.0,0.00014772,2]
[392943185,1762161032232,-500.0,0.00014773,2]
[392943186,1762161032242,-500.0,0.00014773,2]
[392943187,1762161032251,-500.0,0.00014773,2]
[392943188,1762161032262,-500.0,0.00014773,2]
[392943189,1762161032271,-500.0,0.00014773,2]
[392943190,1762161032281,-500.0,0.00014773,2]
[392943191,1762161032291,-24.66293992,0.00014773,2]
[392943192,1762161032307,-475.33706008,0.00014773,2]
[392943193,1762161032316,-46.71084981,0.00014773,2]
[392943195,1762161032327,-453.28915019,0.00014773,2]
[392943197,1762161032336,-500.0,0.00014773,2]
[392943199,1762161032346,-585.02702278,0.00014773,2]
[392943201,1762161032355,-500.0,0.00014773,2]
[392943203,1762161032365,-500.0,0.00014773,2]
[392943205,1762161032374,-500.0,0.00014773,2]
[392943207,1762161032383,-616.14579358,0.00014773,2]
[392943209,1762161032392,-500.0,0.00014773,2]
[392943211,1762161032401,-500.0,0.00014773,2]
[392943213,1762161032411,-500.0,0.00014773,2]
[392943215,1762161032420,-500.97625752,0.00014773,2]
[392943217,1762161032430,-500.0,0.00014773,2]
[392943218,1762161032442,-500.0,0.00014773,2]
[392943220,1762161032452,-828.46,0.00014773,2]
[392943222,1762161032461,-255.93337626,0.00014779,2]
[392943225,1762161032471,-451.72264501,0.00014779,2]
[392943228,1762161032480,-209.58212566,0.00014779,2]
[392943230,1762161032489,-175.01965059,0.00014779,2]
[392943234,1762161032498,-500.0,0.00014779,2]
[392943238,1762161032508,-509.40808556,0.00014779,2]
[392943241,1762161032517,-500.0,0.00014779,2]
[392943244,1762161032527,-500.0,0.00014779,2]
[392943246,1762161032536,-500.0,0.00014779,2]
[392943248,1762161032546,-500.0,0.00014779,2]
[392943250,1762161032555,-618.08878748,0.00014779,2]
[392943252,1762161032565,-500.0,0.00014779,2]
[392943254,1762161032574,-500.0,0.00014779,2]
[392943256,1762161032583,-500.0,0.00014779,2]
[392943258,1762161032592,-539.61572142,0.00014779,2]
[392943260,1762161032602,-500.0,0.00014779,2]
[392943262,1762161032611,-500.0,0.00014779,2]
[392943264,1762161032620,-500.0,0.00014779,2]
[392943266,1762161032629,-500.0,0.00014779,2]
[392943268,1762161032639,-500.0,0.00014779,2]
[392943270,1762161032647,-500.0,0.00014779,2]
[392943272,1762161032656,-500.0,0.00014779,2]
[392943273,1762161032666,-500.0,0.00014779,2]
[392943276,1762161032676,-500.0,0.00014779,2]
[392943277,1762161032688,-500.0,0.00014779,2]
[392943279,1762161032697,-500.0,0.00014779,2]
[392943281,1762161032706,-500.0,0.00014779,2]
[392943283,1762161032715,-350.0,0.00014779,2]
[392943285,1762161032724,-500.0,0.00014779,2]
[392943287,1762161032733,-500.0,0.00014779,2]
[392943289,1762161032742,-500.0,0.00014779,2]
[392943291,1762161032751,-37433.87228693,0.0001478,2]
[392943318,1762161032988,-864.08449454,0.0001478,2]
[392943320,1762161033000,-190759.5224744,0.0001478,2]
[392943323,1762161033016,-2695.0935315,0.0001478,2]
[392943325,1762161033027,-1480.499992,0.0001478,2]
[392943328,1762161033043,-1106.82495151,0.0001478,2]
[392943331,1762161033057,-9765.98186768,0.0001478,2]
[392943333,1762161033068,-32649.22926341,0.0001478,2]
[392943335,1762161033079,-25389.58767007,0.0001478,2]
[392943337,1762161033090,-1195.98280455,0.0001478,2]
[392943339,1762161033101,-35949.0030408,0.0001478,2]
[392943423,1762161037938,-478.37891291,0.0001478,2]
[392943424,1762161038044,-37107.39306149,0.0001478,2]
[392943425,1762161038153,-4141.776292,0.0001478,2]
[392943426,1762161038165,-1191.612,0.0001478,2]
[392943427,1762161038177,-619.3089963,0.0001478,2]
[392943428,1762161038193,-7477.4,0.0001478,2]
[392943429,1762161038204,-493.99995,0.0001478,2]
[392943431,1762161038216,-508.11005083,0.0001478,2]
[392943496,1762161040151,-28692.33835908,0.0001478,2]
[392943497,1762161040162,-526.0886478,0.000148,2]
[392943498,1762161040172,-150.0,0.00014801,2]
[392943499,1762161040183,-225.03,0.00014802,2]
[392943500,1762161040195,-193.0,0.00014872,2]
[392943501,1762161040204,-500.0,0.00014879,2]
[392943502,1762161040213,-500.0,0.00014879,2]
[392943503,1762161040222,-200.0,0.0001488,2]
[392943504,1762161040232,-209.708,0.00014894,2]
[392943505,1762161040241,-150.0,0.00014894,2]
[392943506,1762161040251,-152.104,0.00014894,2]
[392943507,1762161040262,-164.27891655,0.000149,2]
[392943508,1762161040271,-150.0,0.000149,2]
[392943509,1762161040281,-150.0,0.000149,2]
[392943510,1762161040290,-150.0,0.000149,2]
[392943511,1762161040299,-150.0,0.000149,2]
[392943512,1762161040309,-295.33139851,0.000149,2]
[392943513,1762161040318,-150.0,0.000149,2]
[392943514,1762161040327,-150.0,0.000149,2]
[392943515,1762161040337,-150.0,0.000149,2]
[392943516,1762161040347,-616.0,0.000149,2]
[392943517,1762161040356,-150.0,0.000149,2]
[392943518,1762161040366,-150.0,0.000149,2]
[392943519,1762161040375,-150.0,0.000149,2]
[392943520,1762161040384,-150.0,0.000149,2]
[392943521,1762161040393,-150.38503355,0.000149,2]
[392943522,1762161040402,-150.0,0.000149,2]
[392943523,1762161040411,-150.0,0.000149,2]
[392943524,1762161040423,-861.0,0.000149,2]
[392943525,1762161040432,-150.0,0.000149,2]
[392943526,1762161040444,-150.0,0.000149,2]
[392943527,1762161040453,-150.0,0.000149,2]
[392943528,1762161040463,-150.0,0.000149,2]
[392943529,1762161040473,-150.0,0.000149,2]
[392943530,1762161040484,-150.0,0.000149,2]
[392943531,1762161040494,-150.0,0.000149,2]
[392943532,1762161040505,-150.0,0.000149,2]
[392943533,1762161040519,-2060.437,0.000149,2]
[392943534,1762161040531,-150.0,0.000149,2]
[392943535,1762161040541,-500.0,0.000149,2]
[392943536,1762161040552,-500.0,0.000149,2]
[392943537,1762161040564,-6468.0,0.000149,2]
[392943538,1762161040575,-500.0,0.00014928,2]
[392943540,1762161040587,-500.0,0.00014928,2]
[392943542,1762161040597,-342.52502965,0.00014928,2]
[392943543,1762161040607,-3060.87910586,0.00014929,2]
[392943545,1762161040625,-441.32010044,0.00014929,2]
[392943546,1762161040637,-882.82240019,0.00014929,2]
[392943547,1762161040662,-31685.98483823,0.00014929,2]
[392943548,1762161040673,-1555.70691196,0.00014958,2]
[392943549,1762161040683,-161.09233194,0.00014973,2]
[392943551,1762161040708,-500.0,0.00014973,2]
[392943553,1762161040720,-500.0,0.00014973,2]
[392943554,1762161040731,-504.26506691,0.00014973,2]
[392943555,1762161040743,-500.0,0.00014973,2]
[392943556,1762161040753,-500.0,0.00014973,2]
[392943557,1762161040766,-500.0,0.00014973,2]
[392943558,1762161040777,-500.0,0.00014973,2]
[392943559,1762161040787,-501.78189786,0.00014973,2]
[392943560,1762161040798,-229.67599749,0.00014973,2]
[392943561,1762161040808,-500.0,0.00014973,2]
[392943562,1762161040818,-500.0,0.00014973,2]
[392943563,1762161040828,-500.14735904,0.00014973,2]
[392943564,1762161040839,-159.91952,0.00014973,2]
[392943565,1762161040848,-500.0,0.00014973,2]
[392943566,1762161040858,-500.28973591,0.00014973,2]
[392943567,1762161040869,-155.14402649,0.00014973,2]
[392943568,1762161040878,-501.38630198,0.00014973,2]
[392943569,1762161040888,-560.97280974,0.00014973,2]
[392943570,1762161040897,-330.71223307,0.00014973,2]
[392943571,1762161040907,-500.0,0.00014973,2]
[392943572,1762161040916,-501.57121462,0.00014973,2]
[392943573,1762161040925,-500.0,0.00014973,2]